[Event "44th Chess Olympiad Open 2022"]
[Site "Chennai"]
[Date "2022.08.01"]
[Round "4.6"]
[White "Van Foreest, Jorden"]
[Black "Nabaty, Tamir"]
[Result "1/2-1/2"]
[WhiteElo "2678"]
[BlackElo "2631"]
[Annotator "TA"]
[PlyCount "91"]
[EventDate "2022.??.??"]
[TimeControl "60"]

{[%evp 15,91,0,10,0,7,0,2,0,8,6,28,22,21,19,23,0,35,29,36,20,22,21,20,10,18,13,
43,41,45,43,43,22,25,25,66,58,60,60,60,60,60,60,60,60,75,68,64,28,30,8,24,8,35,
46,50,17,32,0,0,0,0,0,0,0,0,0,0,0,0,0,0,0,0,0,0,0,0,0]} 1. e4 {[%emt 0:00:04]}
e5 {[%emt 0:00:10]} 2. Nf3 {[%emt 0:00:09]} Nf6 {[%emt 0:00:17]} 3. d4 {
[%emt 0:01:29]} Nxe4 {[%emt 0:00:23]} 4. Bd3 {[%emt 0:00:14]} d5 {[%emt 0:00:
00]} 5. dxe5 {[%emt 0:01:06]} Nc6 {[%emt 0:01:39]} 6. O-O {[%emt 0:00:49]} Bg4
{[%emt 0:01:00]} 7. Nc3 {[%emt 0:01:26]} Nxc3 {[%emt 0:01:00]} 8. bxc3 {
[%emt 0:00:40]} Bc5 {[%emt 0:00:14]} 9. Re1 {[%emt 0:00:42] C43: Petroff
Defence: 3 d4.} O-O {[%emt 0:01:24]} 10. h3 {[%emt 0:00:18]} Bh5 {[%emt 0:00:
00]} 11. Rb1 {[%emt 0:00:05]} b6 {[%emt 0:01:39] 11...b6 has lost popularity.}
12. Bf4 {[%emt 0:05:58]} h6 {[%emt 0:14:35]} 13. g4 {[%emt 0:10:02]} Bg6 {
[%emt 0:00:08]} 14. Bg3 {[%emt 0:01:02] [#]} f5 $146 {[%emt 0:02:53]} ({
Predecessor:} 14... Bxd3 15. cxd3 d4 16. c4 Qd7 17. Nh4 Rae8 18. f4 Be7 19. Nf5
Bb4 20. Re4 f6 {1-0 (39) Brodda,W (2596)-Schirrmacher,C (2000) GER email 2015})
15. exf6 {[%emt 0:11:56]} (15. Kg2 $5 {[%cal Rf3h4]}) 15... Bxd3 {[%emt 0:00:
00]} 16. Qxd3 {[%emt 0:00:10] [#] And now fxg7 would win.} Qxf6 {[%emt 0:00:19]
} 17. Kg2 {[%emt 0:00:12]} d4 {[%emt 0:05:10]} 18. cxd4 {[%emt 0:22:45]} Nxd4 {
[%emt 0:09:02]} 19. Nxd4 {[%emt 0:01:10] Chess con chili.} Bxd4 {[%emt 0:07:53]
} 20. Qb3+ {[%emt 0:00:24]} Kh8 {[%emt 0:01:45][%cal Rd4f2]} 21. Re6 {[%emt 0:
00:00]} Qf7 {[%emt 0:01:41]} 22. Rbe1 {[%emt 0:03:57]} c5 {[%emt 0:11:04]} (
22... Bxf2 $2 23. Rf1 $18) 23. Re7 {[%emt 0:00:19] Active counter play!} (23.
f4 {looks sharper.} Qd7 24. f5 Rae8 25. Bd6) 23... Qxb3 {[%emt 0:01:53]} 24.
cxb3 {[%emt 0:00:58]} Kg8 {[%emt 0:02:58]} 25. Rb7 $1 {[%emt 0:01:37]} Rf7 {
[%emt 0:00:20]} 26. Ree7 {[%emt 0:00:16]} Rxe7 {[%emt 0:00:06]} 27. Rxe7 $14 {
[%emt 0:00:04] Endgame KRB-KRB} b5 {[%emt 0:00:44]} 28. Rc7 {[%emt 0:01:45]}
Re8 {[%emt 0:05:34]} 29. Rxa7 {[%emt 0:04:52]} c4 {[%emt 0:00:00][%cal Yc5c4,
Yc4c3]} 30. Rd7 {[%emt 0:01:00]} Bf6 {[%emt 0:04:19]} 31. Rc7 {[%emt 0:03:09]}
c3 {[%emt 0:01:39]} 32. Bd6 {[%emt 0:01:24] [#] aiming for Bb4.} Re2 {[%emt 0:
02:25]} 33. Bb4 {[%emt 0:00:04]} Bd4 {[%emt 0:00:00]} (33... Be5 $5 {[%cal
Re5c7]} 34. Rc8+ Kf7 $14) 34. Kf3 {[%emt 0:01:23]} Rxa2 {[%emt 0:02:02]} 35.
Ke4 $1 {[%emt 0:00:18]} Bf6 $1 {[%emt 0:03:46]} 36. Bxc3 {[%emt 0:01:47]} Rc2 {
[%emt 0:00:41] The position is equal.} 37. Kd3 {[%emt 0:00:28]} Rxf2 {[%emt 0:
00:07]} 38. Bxf6 {[%emt 0:00:04]} Rxf6 $11 {[%emt 0:00:55] KR-KR} 39. Ke4 {
[%emt 0:01:28] Inhibits Rf3.} Rf1 {[%emt 0:00:00]} 40. Rc3 {[%emt 0:01:21]} b4
{[%emt 0:00:00]} 41. Rd3 {[%emt 0:31:34]} g5 {[%emt 0:01:31]} 42. Rf3 {[%emt 0:
00:00]} Rc1 {[%emt 0:02:01]} 43. Kd5 {[%emt 0:00:00]} Rc3 {[%emt 0:00:19]} 44.
Ke4 {[%emt 0:00:00] Threatening mate with Rxc3.} Rc1 {[%emt 0:00:05]} 45. Kd5 {
[%emt 0:00:00]} Rc3 {[%emt 0:00:05]} 46. Ke4 {[%emt 0:00:14] Weighted Error
Value: White=0.05 (flawless) /Black=0.05 (flawless)} 1/2-1/2

[Event "44th Chess Olympiad Open 2022"]
[Site "Chennai"]
[Date "2022.08.01"]
[Round "4.6"]
[White "Warmerdam, Max"]
[Black "Rodshtein, Maxim"]
[Result "1/2-1/2"]
[WhiteElo "2610"]
[BlackElo "2596"]
[Annotator "TA"]
[PlyCount "119"]
[EventDate "2022.??.??"]
[TimeControl "60"]

{[%evp 10,119,-12,-23,-2,-8,-2,-10,-8,-6,-12,-16,-8,-14,0,-28,-38,-38,-22,-24,
-21,-18,12,-25,-15,-3,16,2,20,-6,0,0,0,-12,45,22,29,42,25,4,10,17,20,2,16,0,0,
0,8,8,9,0,0,0,0,0,0,0,16,15,8,5,8,8,8,0,8,8,8,8,11,5,8,0,8,0,0,0,0,0,0,0,0,0,0,
0,0,0,0,0,0,0,8,8,8,0,0,0,8,8,8,8,8,8,8,8,8,8,8,0,0,0]} 1. c4 {[%emt 0:00:05]}
e5 {[%emt 0:00:37]} 2. Nc3 {[%emt 0:00:12]} Bb4 {[%emt 0:01:21]} 3. g3 {
[%emt 0:03:19]} Nf6 {[%emt 0:02:45]} 4. e4 {[%emt 0:00:59]} Nc6 {[%emt 0:06:07]
} 5. Nge2 {[%emt 0:05:10]} d6 {[%emt 0:00:48]} 6. Bg2 {[%emt 0:00:32]} Bc5 {
[%emt 0:07:05] A25: English Opening vs King's Indian with ...Nc6 but without
early d3.} 7. h3 {[%emt 0:03:01] Against Ng4} a6 {[%emt 0:04:52]} 8. d3 {
[%emt 0:01:25]} b5 {[%emt 0:24:11]} 9. b3 {[%emt 0:06:16]} Nd4 {[%emt 0:02:01]}
10. Be3 {[%emt 0:03:32]} c6 {[%emt 0:10:21] [#]} 11. O-O $146 {[%emt 0:00:40]}
({Predecessor:} 11. Bxd4 exd4 12. Nb1 bxc4 13. bxc4 Rb8 14. O-O Bd7 15. f4 O-O
16. Nd2 Ba3 17. Nb3 {1-0 (35) Tahbaz,A (2455)-Javanbakht,N (2436) Bushehr 2018}
) 11... Rb8 {[%emt 0:04:20]} 12. Kh1 {[%emt 0:11:33]} O-O {[%emt 0:01:14]} 13.
Qd2 {[%emt 0:02:29]} Nd7 {[%emt 0:06:08]} 14. f4 {[%emt 0:06:52]} Qa5 {[%emt 0:
00:00]} 15. Rac1 {[%emt 0:02:53]} Nxe2 {[%emt 0:02:45]} 16. Qxe2 {[%emt 0:00:
00]} (16. Nxe2 $5 {[%cal Rd2a5]} Bb4 17. Qc2 $11) 16... Bxe3 {[%emt 0:00:33]}
17. Qxe3 {[%emt 0:00:04]} Qb6 {[%emt 0:02:26]} 18. Qd2 {[%emt 0:02:01]} Bb7 {
[%emt 0:01:00]} 19. Ne2 {[%emt 0:06:24]} Rfe8 {[%emt 0:01:11]} 20. g4 {[%emt 0:
00:00]} d5 {[%emt 0:08:09]} 21. fxe5 {[%emt 0:02:43][%cal Rc4d5]} dxe4 {
[%emt 0:01:15]} (21... dxc4 $11 22. e6 Rxe6) 22. d4 $1 $14 {[%emt 0:10:40] [#]
aiming for Qf4.} c5 {[%emt 0:00:27]} 23. Qf4 {[%emt 0:00:38][%csl Ye4,Yf7]} Qg6
{[%emt 0:02:09]} 24. d5 {[%emt 0:04:41]} (24. e6 $5 Qxe6 25. d5 $14) 24... Rxe5
{[%emt 0:00:07] The position is equal.} 25. Ng3 {[%emt 0:00:04][%cal Rg2e4]}
Rbe8 {[%emt 0:00:13]} 26. Rce1 {[%emt 0:00:25]} e3 {[%emt 0:04:57]} 27. Rf3 {
[%emt 0:00:34][%cal Rf3e3]} e2 {[%emt 0:01:46]} 28. Rf2 {[%emt 0:00:27]} Qf6 {
[%emt 0:00:20]} 29. Qxf6 {[%emt 0:01:21]} Nxf6 {[%emt 0:00:16]} 30. Rfxe2 {
[%emt 0:11:41]} (30. Bf3 {is interesting.} bxc4 31. bxc4 a5 32. Rfxe2 Rxe2 33.
Rxe2 Kf8 34. g5) 30... Rxe2 {[%emt 0:00:11]} 31. Rxe2 {[%emt 0:00:03]} Rxe2 {
[%emt 0:01:19]} 32. Nxe2 {[%emt 0:00:04]} bxc4 {[%emt 0:01:01]} 33. bxc4 $11 {
[%emt 0:00:04] Endgame KBN-KBN} Ne8 {[%emt 0:01:04]} 34. Nc3 {[%emt 0:00:44]}
Nd6 {[%emt 0:00:17]} 35. Na4 {[%emt 0:02:51]} Nxc4 {[%emt 0:00:00]} 36. Nxc5 {
[%emt 0:00:06]} Nd6 {[%emt 0:01:01]} 37. Kg1 {[%emt 0:00:31]} Kf8 {[%emt 0:00:
27]} 38. Kf2 {[%emt 0:00:23]} Ke7 {[%emt 0:00:27]} 39. Ke3 {[%emt 0:00:08]} Bc8
{[%emt 0:00:41]} 40. Bf1 {[%emt 0:01:50]} a5 {[%emt 0:00:00]} 41. a3 {[%emt 0:
06:43]} f5 {[%emt 0:11:00]} 42. g5 {[%emt 0:03:20]} Nf7 {[%emt 0:03:24]} 43. h4
{[%emt 0:00:38]} Kd6 {[%emt 0:02:30][%csl Yc5,Yd5]} 44. Kd4 {[%emt 0:00:06]}
Ne5 {[%emt 0:00:21] ...Nf3+ is the strong threat.} 45. Be2 {[%emt 0:03:17]
Inhibits Nf3+.} Ng6 {[%emt 0:01:50]} 46. Nb3 {[%emt 0:00:00]} Bb7 {[%emt 0:01:
09]} 47. Bf3 {[%emt 0:01:34]} Nxh4 {[%emt 0:00:41]} 48. Bh1 {[%emt 0:00:05]} f4
{[%emt 0:00:56] [#] White must now prevent ...f3.} 49. Be4 {[%emt 0:01:12]} a4
{[%emt 0:05:37]} 50. Nd2 {[%emt 0:04:00]} f3 {[%emt 0:00:00]} 51. Nc4+ {
[%emt 0:03:15]} Kd7 {[%emt 0:00:02]} 52. Ne5+ {[%emt 0:07:01]} Kd6 {[%emt 0:00:
42] Threatens to win with ...f2.} 53. Nc4+ {[%emt 0:00:05]} Kd7 {[%emt 0:00:04]
} 54. Ke3 {[%emt 0:04:11]} h6 {[%emt 0:03:26]} 55. gxh6 {[%emt 0:00:04]} gxh6 {
[%emt 0:00:03]} 56. Kf2 {[%emt 0:00:04]} Ba6 {[%emt 0:00:00]} 57. Nb6+ {
[%emt 0:00:18]} Kd6 {[%emt 0:00:06]} 58. Nxa4 {[%emt 0:00:06]} Ke5 {[%emt 0:01:
02]} 59. Nc5 {[%emt 0:00:14]} Bc4 {[%emt 0:00:48]} 60. a4 {[%emt 0:01:51]
Weighted Error Value: White=0.05 (flawless) /Black=0.05 (flawless)} 1/2-1/2

[Event "44th Chess Olympiad Open 2022"]
[Site "Chennai"]
[Date "2022.08.01"]
[Round "4.6"]
[White "Smirin, Ilia"]
[Black "L'Ami, Erwin"]
[Result "1-0"]
[WhiteElo "2601"]
[BlackElo "2634"]
[Annotator "TA"]
[PlyCount "97"]
[EventDate "2022.??.??"]
[TimeControl "60"]

{[%evp 22,97,20,16,68,70,75,59,72,66,112,112,119,116,135,110,120,117,117,103,
108,112,126,125,141,137,137,137,140,130,146,146,150,158,164,112,177,174,197,
195,198,193,192,207,216,216,209,209,227,217,217,212,343,324,412,387,512,506,
714,716,683,643,757,764,777,777,771,739,818,800,781,784,850,836,1358,1195,1650,
1577]} 1. c4 {[%emt 0:00:04]} e6 {[%emt 0:01:40]} 2. g3 {[%emt 0:00:20]} d5 {
[%emt 0:00:53]} 3. Bg2 {[%emt 0:00:07]} Nf6 {[%emt 0:02:23]} 4. Nf3 {[%emt 0:
00:00]} Be7 {[%emt 0:01:48]} 5. O-O {[%emt 0:01:35]} O-O {[%emt 0:00:08]} 6. b3
{[%emt 0:00:32]} c5 {[%emt 0:03:27]} 7. Bb2 {[%emt 0:02:51][%cal Yc1b2,Yb2c3,
Yc3d4]} Nc6 {[%emt 0:04:37]} 8. cxd5 {[%emt 0:04:47]} Nxd5 {[%emt 0:00:00]} 9.
d4 {[%emt 0:06:31]} cxd4 {[%emt 0:08:17]} 10. Nxd4 {[%emt 0:00:44]} Bd7 {
[%emt 0:06:01]} 11. Nc3 {[%emt 0:04:04]} Nxc3 {[%emt 0:06:00]} 12. Bxc3 {
[%emt 0:00:50]} Nxd4 {[%emt 0:09:21] A14: English Opening: 1...e6 with b3 by
White.} (12... Rc8 $11) 13. Bxd4 $14 {[%emt 0:00:55]} Bc6 {[%emt 0:00:40]} 14.
Bxc6 {[%emt 0:00:37]} bxc6 {[%emt 0:00:07] White is slightly better.} 15. Rc1 {
[%emt 0:01:17]} Qd5 {[%emt 0:13:29] [#]} (15... Qa5 $14) 16. Rc4 $1 $16 {
[%emt 0:02:57]} a5 {[%emt 0:01:51][%cal Ya5a4]} 17. Qc2 {[%emt 0:01:38] [#]}
Rfc8 $146 {[%emt 0:04:06]} ({Predecessor:} 17... Rfd8 18. e4 Qb5 19. Bc5 Bf6
20. Be3 Ra6 21. Rc5 Qb7 22. Rc1 Rc8 23. Rc4 g6 {1-0 (36) Kubos,R (2143)
-Splichal,S (2086) Czech Republic 2020}) 18. Rd1 {[%emt 0:03:25][%cal Yf1d1,
Yd1d7,Yd7b7]} Qf5 {[%emt 0:03:06]} 19. Qxf5 {[%emt 0:14:39]} exf5 {[%emt 0:02:
47]} 20. Bc3 {[%emt 0:00:06]} Bb4 {[%emt 0:01:12]} 21. Rd7 {[%emt 0:00:00]
White is more active.} Bxc3 {[%emt 0:02:39]} 22. Rxc3 {[%emt 0:03:15] Endgame
KRR-KRR} g6 {[%emt 0:00:28]} 23. a4 {[%emt 0:08:12]} Ra6 {[%emt 0:05:14]} 24.
Rb7 {[%emt 0:03:49]} Kg7 {[%emt 0:01:21]} 25. Kf1 {[%emt 0:00:00]} Re8 {
[%emt 0:02:53]} 26. Rd3 {[%emt 0:02:03]} Re6 {[%emt 0:10:00]} 27. Rdd7 {
[%emt 0:01:13]} Rf6 {[%emt 0:00:06]} 28. Ra7 {[%emt 0:10:23]} ({Better is} 28.
e3 $18) 28... Rb6 {[%emt 0:00:22]} (28... Rxa7 $16 29. Rxa7 Rd6) 29. Rd3 $18 {
[%emt 0:00:25]} ({But not} 29. Rxa5 $6 Rxb3 30. e3 Ra3 $16) 29... c5 {[%emt 0:
02:20][%cal Yc5c4]} 30. Rxa5 {[%emt 0:02:54]} c4 {[%emt 0:00:22]} 31. bxc4 {
[%emt 0:00:06]} Rb1+ {[%emt 0:00:06]} 32. Kg2 {[%emt 0:00:04]} Rb2 {[%emt 0:00:
41]} 33. Kf3 {[%emt 0:02:13]} Rc2 {[%emt 0:00:35]} 34. c5 {[%emt 0:00:00]} Re6
{[%emt 0:01:09]} 35. Re3 {[%emt 0:01:40]} Rc6 {[%emt 0:00:08]} 36. Rb5 {
[%emt 0:01:38] Black must now prevent a5.} Ra2 {[%emt 0:00:20]} (36... R2xc5 {
keeps fighting.} 37. Rxc5 Rxc5) 37. a5 {[%emt 0:00:54]} g5 {[%emt 0:00:00]} 38.
Rc3 {[%emt 0:05:55]} g4+ {[%emt 0:01:01]} 39. Ke3 {[%emt 0:00:38] White is
clearly winning.} Re6+ {[%emt 0:00:38]} 40. Kd4 {[%emt 0:02:11]} Rd2+ {[%emt 0:
02:20]} 41. Kc4 {[%emt 0:35:14]} Re4+ {[%emt 0:32:50]} 42. Kb3 {[%emt 0:00:05]}
Rexe2 {[%emt 0:00:07]} 43. Rb6 {[%emt 0:00:00]} ({Weaker is} 43. c6 Rb2+ 44.
Kc4 Re4+ 45. Kd3 Rxb5 $17) 43... Rb2+ {[%emt 0:00:00]} 44. Kc4 {[%emt 0:00:00]
[#] Threatens to win with Rxb2.} Re4+ {[%emt 0:00:00]} 45. Kd5 {[%emt 0:00:00]}
Rd2+ {[%emt 0:00:00]} 46. Kc6 {[%emt 0:00:00]} Rxf2 {[%emt 0:00:00]} 47. a6 {
[%emt 0:00:00]} Rxh2 {[%emt 0:00:00]} 48. Ra3 {[%emt 0:00:00]} ({Less strong is
} 48. a7 Ra2 $14) 48... Re6+ {[%emt 0:00:00]} 49. Kd7 {[%emt 0:00:00] Weighted
Error Value: White=0.04 (flawless) /Black=0.27 (precise)} 1-0

[Event "44th Chess Olympiad Open 2022"]
[Site "Chennai"]
[Date "2022.08.01"]
[Round "4.6"]
[White "Boruchovsky, Avital"]
[Black "Giri, Anish"]
[Result "1/2-1/2"]
[WhiteElo "2551"]
[BlackElo "2760"]
[Annotator "TA"]
[PlyCount "84"]
[EventDate "2022.??.??"]
[TimeControl "60"]

{[%evp 15,84,42,43,14,22,11,21,11,35,-3,0,0,0,0,-1,-9,0,0,0,0,20,29,24,-37,-34,
-37,-33,-45,-38,-39,-38,-114,-45,-39,-30,-37,-39,-5,-27,-65,-63,-56,-57,-41,
-48,-56,0,0,0,0,0,0,0,-3,0,0,0,0,0,0,0,0,0,0,0,0,0,0,0,0,0]} 1. e4 {[%emt 0:00:
00]} d6 {[%emt 0:00:37]} 2. d4 {[%emt 0:01:31]} Nf6 {[%emt 0:00:58]} 3. Nc3 {
[%emt 0:00:14]} e5 {[%emt 0:00:14]} 4. Nf3 {[%emt 0:03:56]} Nbd7 {[%emt 0:00:
00]} 5. Bc4 {[%emt 0:04:47]} Be7 {[%emt 0:00:14]} 6. O-O {[%emt 0:00:08]} O-O {
[%emt 0:00:04]} 7. Re1 {[%emt 0:00:14]} c6 {[%emt 0:06:31]} 8. a4 {[%emt 0:00:
00]} h6 {[%emt 0:00:37] The modern move.} 9. Bf1 {[%emt 0:04:14] C41: Philidor
Defence.} Re8 {[%emt 0:04:01]} 10. h3 {[%emt 0:05:38] [#]} b6 $146 {[%emt 0:00:
00]} ({Predecessor:} 10... exd4 11. Nxd4 Bf8 12. f4 Nc5 13. Qf3 a5 14. Kh1 Qb6
15. e5 Nfd7 16. Qg3 Kh8 17. Nf3 dxe5 18. fxe5 {0-1 (42) Belyakov,B (2459)
-Yudin,S (2507) St Petersburg 2018}) 11. Be3 {[%emt 0:16:20]} a6 {[%emt 0:00:
00]} 12. Nh4 {[%emt 0:01:44]} Bf8 {[%emt 0:07:20][%cal Yf6e4]} 13. dxe5 {
[%emt 0:01:24]} Nxe5 {[%emt 0:06:24][%cal Yf6g4]} 14. f4 {[%emt 0:00:59]} Ned7
{[%emt 0:09:36]} 15. Bf2 {[%emt 0:00:26][%cal Ye4e5]} Nc5 {[%emt 0:08:11]} 16.
Qf3 {[%emt 0:04:17]} d5 {[%emt 0:00:59][%cal Rc5e4]} 17. Rad1 {[%emt 0:05:00]}
Bb7 {[%emt 0:16:04][%cal Rc5e4]} 18. e5 {[%emt 0:08:09]} Nfe4 {[%emt 0:00:46]}
19. Nf5 {[%emt 0:02:31]} (19. Nxe4 $11 Nxe4 20. Kh1) 19... Nxf2 $15 {[%emt 0:
00:00]} 20. Qxf2 {[%emt 0:00:04]} Qd7 {[%emt 0:01:44]} 21. Ne3 {[%emt 0:00:06]}
Rad8 {[%emt 0:01:20]} 22. Qg3 {[%emt 0:06:51]} Kh8 {[%emt 0:02:00]} 23. f5 {
[%emt 0:11:03]} (23. Ng4 $15) 23... Qc7 {[%emt 0:01:10]} ({Black should try} 
23... Qe7 $17 24. Ng4 Qg5) 24. Ng4 $1 {[%emt 0:00:07]} Bc8 {[%emt 0:13:16]} 25.
b4 $1 {[%emt 0:07:10]} Ne4 {[%emt 0:00:11]} 26. Nxe4 {[%emt 0:00:03]} dxe4 {
[%emt 0:00:04]} 27. Rxd8 {[%emt 0:00:04]} Qxd8 {[%emt 0:00:09]} 28. e6 {
[%emt 0:03:30]} fxe6 {[%emt 0:00:33]} 29. f6 {[%emt 0:00:19]} gxf6 {[%emt 0:00:
00] Hoping for ...Qe7.} 30. Rxe4 {[%emt 0:00:02][%cal Yg4h6] [#] Nxh6! is the
strong threat.} f5 {[%emt 0:03:53]} (30... Qe7 $1 $15 31. Qf4 f5) 31. Ne5 $1
$11 {[%emt 0:01:01] aiming for Nf7+. The position is equal.} Qf6 {[%emt 0:00:
00] Prevents Nf7+.} 32. Ng6+ {[%emt 0:02:25]} Kh7 {[%emt 0:00:05]} 33. Nxf8+ {
[%emt 0:00:06]} Rxf8 {[%emt 0:00:02][%cal Ye8f8,Yf8g8,Yg8g7]} 34. Re5 {[%emt 0:
00:31]} Rg8 {[%emt 0:02:47]} (34... f4 {seems wilder.} 35. Qe1 f3 36. Qe4+ Kg7)
35. Qe3 {[%emt 0:01:31]} Rg7 {[%emt 0:00:37]} 36. a5 {[%emt 0:02:47]} b5 {
[%emt 0:00:38]} 37. Bd3 {[%emt 0:03:38]} Bd7 {[%emt 0:01:10]} 38. Kh2 {[%emt 0:
00:39]} Kg8 {[%emt 0:04:36]} 39. Qf4 {[%emt 0:00:55] Prevents Qh4.} Qg5 {
[%emt 0:00:40][%csl Gg7][%cal Rg5g2] [#]} 40. Qf2 {[%emt 0:01:12] Active
counter play!} Qf6 {[%emt 0:02:53]} 41. Qf4 {[%emt 0:01:58]} Qg5 {[%emt 0:00:
00][%csl Gg7][%cal Rg5g2]} 42. Qf2 {[%emt 0:00:20]} Qf6 {[%emt 0:00:14]
Weighted Error Value: White=0.08 (flawless) /Black=0.07 (flawless)} 1/2-1/2

[Event "44th Chess Olympiad Open 2022"]
[Site "Chennai"]
[Date "2022.08.01"]
[Round "4.7"]
[White "Jones, Gawain C B"]
[Black "Perunovic, Milos"]
[Result "1/2-1/2"]
[WhiteElo "2652"]
[BlackElo "2539"]
[Annotator "TA"]
[PlyCount "81"]
[EventDate "2022.??.??"]
[TimeControl "60"]

{[%evp 11,81,10,16,7,10,0,6,-4,4,0,0,-16,-8,-9,9,6,39,41,45,48,94,83,91,87,174,
164,172,171,134,97,143,120,108,66,59,53,47,59,97,98,123,122,121,121,122,90,94,
79,84,38,78,0,30,-8,-8,-8,-8,-8,-8,-8,-8,-15,0,0,-2,-8,-8,-10,-6,-18,0,0]} 1.
c4 {[%emt 0:00:19]} c5 {[%emt 0:01:52]} 2. Nf3 {[%emt 0:00:08]} Nc6 {[%emt 0:
00:00]} 3. Nc3 {[%emt 0:00:08]} e5 {[%emt 0:04:32]} 4. g3 {[%emt 0:00:29]} g6 {
[%emt 0:00:30]} 5. Bg2 {[%emt 0:00:07]} Bg7 {[%emt 0:00:05]} 6. a3 {[%emt 0:00:
00]} a5 {[%emt 0:06:11]} 7. O-O {[%emt 0:04:23] 7.d3 is more advanced
technology. A37: Symmetrical English vs ...g6:4 Bg2 Bg7 5 Nf3.} d6 {[%emt 0:00:
00]} 8. Ne1 {[%emt 0:02:01]} Be6 {[%emt 0:04:55]} 9. d3 {[%emt 0:03:54]} Nge7 {
[%emt 0:02:05]} 10. Nd5 {[%emt 0:02:19]} O-O {[%emt 0:02:21]} 11. Nc2 {[%emt 0:
14:59]} Rb8 {[%emt 0:12:35]} 12. b4 {[%emt 0:03:03]} axb4 {[%emt 0:00:00]} 13.
axb4 {[%emt 0:00:08]} cxb4 {[%emt 0:01:30]} 14. Bg5 {[%emt 0:12:24]} f6 {
[%emt 0:07:44]} 15. Bd2 {[%emt 0:01:09]} b5 {[%emt 0:06:52]} (15... b3 $14 16.
Ncb4 Nxb4 17. Bxb4 b2) 16. Ncxb4 $16 {[%emt 0:02:04] [#] Hoping for Na6.} Nxb4
$146 {[%emt 0:07:24]} ({Predecessor:} 16... bxc4 17. dxc4 Rc8 18. Nxc6 Nxc6 19.
Be3 Kh8 20. Nb6 Rc7 21. Ra8 Qe7 22. Nd5 Bxd5 23. Rxf8+ Bxf8 24. Qxd5 {1-0 (38)
Gledura,B (2574)-Zanan,E (2450) Celje 2016}) 17. Bxb4 {[%emt 0:00:14]} Nc6 {
[%emt 0:05:48]} (17... bxc4 $16 18. dxc4 Nxd5 19. Bxd5 Rxb4 20. Bxe6+ Kh8) 18.
Ra6 $1 $18 {[%emt 0:06:48]} Nxb4 {[%emt 0:04:05]} 19. Nxb4 {[%emt 0:00:07] And
now Nc6 would win.} Qc7 {[%emt 0:04:50]} (19... bxc4 $2 20. Nc6 Qc7 21. Nxb8
Rxb8 22. dxc4) 20. Rc6 {[%emt 0:16:51]} Qe7 {[%emt 0:03:42]} (20... Qa5 $142
21. Rxd6 Qxb4 22. Rxe6 Kh8) 21. c5 {[%emt 0:02:02]} ({Don't take} 21. Nd5 Qd7
$16) 21... Rbd8 {[%emt 0:01:44]} (21... dxc5 $2 {[#]} 22. Rxe6 $1 Qd7 23. Bc6
$1 $18) 22. Ra6 {[%emt 0:04:33] aiming for Nc6.} dxc5 {[%emt 0:00:16]} 23. Nc6
{[%emt 0:03:52][%csl Yd8,Ye7]} Qd6 {[%emt 0:00:06]} 24. Qb1 {[%emt 0:00:00]} b4
{[%emt 0:04:06] [#]} 25. Nxb4 $1 {[%emt 0:00:37]} Qd7 {[%emt 0:00:05]} (25...
Qb8 26. Rxe6) 26. Nc6 {[%emt 0:00:42]} Rc8 {[%emt 0:00:06][%cal Yd8c8,Yc8c7,
Yc7d7]} 27. Qb6 {[%emt 0:01:09] Threatens to win with Ra7.} Kh8 {[%emt 0:01:29]
} 28. Qxc5 {[%emt 0:07:17]} Rc7 {[%emt 0:00:20]} 29. Qb4 {[%emt 0:05:05]} Rfc8
{[%emt 0:00:42][%cal Rc7c6]} 30. Qa4 {[%emt 0:01:44] 0x0.001eb8faa8c7dp-1022s
more active pieces.} (30. Qb6 $16) 30... h5 {[%emt 0:00:00]} 31. d4 {[%emt 0:
01:32]} (31. Qb5 $16) 31... exd4 $11 {[%emt 0:00:20]} 32. Nxd4 {[%emt 0:00:08]}
Bc4 {[%emt 0:00:14] The position is equal.} 33. Qxd7 {[%emt 0:00:57]} Rxd7 {
[%emt 0:00:05]} 34. Rc6 {[%emt 0:00:24]} Rxc6 {[%emt 0:00:00]} 35. Nxc6 {
[%emt 0:00:03]} Bxe2 {[%emt 0:00:07]} 36. Re1 {[%emt 0:00:04]} Rd1 {[%emt 0:01:
04]} 37. Rxd1 {[%emt 0:00:04]} Bxd1 {[%emt 0:00:02]} 38. Bd5 {[%emt 0:01:03]}
Bf8 {[%emt 0:00:28]} 39. Kg2 {[%emt 0:00:50]} Ba4 {[%emt 0:00:00]} 40. f4 {
[%emt 0:01:00]} Bxc6 {[%emt 0:00:15]} 41. Bxc6 {[%emt 0:30:06] Black defended
with fortune. Weighted Error Value: White=0.11 (very precise) / Black=0.12 
(very precise)} 1/2-1/2

[Event "44th Chess Olympiad Open 2022"]
[Site "Chennai"]
[Date "2022.08.01"]
[Round "4.7"]
[White "McShane, Luke J"]
[Black "Markus, Robert"]
[Result "1-0"]
[WhiteElo "2649"]
[BlackElo "2616"]
[Annotator "RC"]
[PlyCount "47"]
[EventDate "2022.??.??"]
[TimeControl "60"]

1. e4 {[%emt 0:00:08]} e6 {[%emt 0:00:05]} 2. d4 {[%emt 0:00:09]} d5 {[%emt 0:
00:00]} 3. Nc3 {[%emt 0:00:11]} dxe4 {[%emt 0:00:07]} 4. Nxe4 {[%emt 0:00:06]}
Bd7 {[%emt 0:00:05]} 5. Nf3 {[%emt 0:00:07]} Bc6 {[%emt 0:00:04]} 6. Bd3 {
[%emt 0:00:07]} Nd7 {[%emt 0:00:04]} 7. O-O {[%emt 0:00:19]} Ngf6 {[%emt 0:00:
00]} 8. Ned2 {[%emt 0:00:11]} Be7 {[%emt 0:00:48]} 9. Qe2 {[%emt 0:00:10]} O-O
{[%emt 0:02:15]} 10. Rd1 {[%emt 0:00:05]} Bxf3 {[%emt 0:06:59]} 11. Nxf3 {
[%emt 0:00:06]} c6 {[%emt 0:00:04]} 12. Bf4 {[%emt 0:05:51]} Nd5 {[%emt 0:00:
00]} 13. Bg3 {[%emt 0:00:39]} b5 {[%emt 0:00:07]} 14. a4 {[%emt 0:06:25]} a6 {
[%emt 0:02:55]} 15. c3 {[%emt 0:00:08]} g6 {[%emt 0:04:48]} 16. h4 {[%emt 0:00:
00]} Re8 {[%emt 0:06:20]} 17. h5 {[%emt 0:01:07]} Bf6 {[%emt 0:00:51]} 18. Qc2
{[%emt 0:08:43]} Bg7 {[%emt 0:06:07]} 19. Re1 {[%emt 0:03:28]} Ne7 {[%emt 0:00:
00]} 20. Bf4 {[%emt 0:04:24]} Nd5 {[%emt 0:03:09]} 21. Bg3 {[%emt 0:00:30]} Ne7
{[%emt 0:00:30]} 22. Bf4 {[%emt 0:00:30]} Nd5 {[%emt 0:00:30]} 23. Bd2 {
[%emt 0:00:30]} N5f6 {[%emt 0:00:30]} 24. Bf4 {[%emt 0:19:46]} 1-0